bitfinex/quotes_ETHUSD_20251111
["timestamp","ask_amount","ask_price","bid_price","bid_amount"]
[1762869693268,2.0036044,3531.6,3531.2,0.66]
[1762869693441,0.4992,3531.4,3531.3,2.83181831]
[1762869693640,2.5028044,3531.4,3531.3,2.83181831]
[1762869693900,2.0036044,3531.5,3531.4,2.83173812]
[1762869694039,2.0036044,3531.5,3531.4,3.30443812]
[1762869694238,2.83080392,3532.6,3531.4,3.30443812]
[1762869694239,2.0036044,3531.6,3531.5,2.83165793]
[1762869694444,1.2312,3531.7,3531.6,2.83157775]
[1762869694883,1.2312,3531.7,3531.5,0.4727]
[1762869695083,1.2312,3531.7,3531.5,2.83164203]
[1762869695244,1.2312,3531.7,3531.6,2.83157775]
[1762869695441,1.2312,3531.7,3531.2,0.1827]
[1762869695658,0.4992,3531.3,3531.2,3.0145985]
[1762869696191,0.4984,3531.3,3531.2,3.0145985]
[1762869696394,0.4984,3531.3,3530.8,0.4727]
[1762869696730,2.73796812,3531.4,3530.2,1.1337408]
[1762869696731,1.50528564,3530.9,3530.3,0.73]
[1762869696838,0.73,3531.2,3530.8,3.30951932]
[1762869697035,2.00696812,3531.5,3531.3,2.83181831]
[1762869697238,2.00696812,3532.0,3531.5,2.83165793]
[1762869697474,2.00696812,3532.0,3531.6,2.83156405]
[1762869697675,0.4984,3532.0,3531.4,3.30898871]
[1762869697891,0.4984,3532.0,3531.9,3.30863724]
[1762869698057,0.73,3532.2,3531.5,0.4727]
[1762869698243,1.00376266,3531.7,3531.6,2.83157775]
[1762869698583,2.00404399,3531.9,3531.8,2.8314174]
[1762869698786,2.86764698,3531.9,3531.8,2.8314174]
[1762869698990,2.36924698,3531.9,3531.8,3.7814174]
[1762869699145,0.60223026,3531.9,3531.8,3.7814174]
[1762869699345,1.60608084,3531.9,3531.8,3.7814174]
[1762869699571,0.60223026,3531.9,3531.8,3.7814174]
[1762869699974,0.60223026,3531.9,3531.8,3.3087174]
[1762869700173,1.10063026,3531.9,3531.8,2.8314174]
[1762869700385,1.36209801,3531.9,3531.4,0.4727]
[1762869700546,1.00397724,3531.5,3531.1,0.1827]
[1762869700746,1.50237724,3531.3,3530.8,0.001]
[1762869700973,0.4984,3531.0,3530.9,2.83213911]
[1762869701180,1.10063026,3531.0,3530.9,2.83213911]
[1762869701491,2.60659612,3531.0,3530.9,2.83213911]
[1762869701710,1.10063026,3531.0,3530.8,0.001]
[1762869701890,0.73,3531.1,3530.8,0.001]
[1762869701891,2.60628394,3530.9,3530.8,0.001]
[1762869702373,2.77298394,3530.9,3530.8,0.001]
[1762869702575,2.77298394,3530.9,3530.4,0.001]
[1762869702576,0.76893026,3530.9,3530.4,0.001]
[1762869702758,1.50191384,3530.5,3530.4,2.83354022]
[1762869703074,1.60601368,3530.5,3530.4,3.78354022]
[1762869703886,0.60223026,3530.5,3530.4,3.78354022]
[1762869704097,1.33123026,3530.5,3530.4,3.78354022]
[1762869704242,2.10750103,3530.5,3530.4,0.001]
[1762869704444,1.82863026,3530.5,3530.4,0.001]
[1762869704754,5.20619025,3530.5,3530.4,0.001]
[1762869705094,5.23438403,3530.5,3530.4,0.001]
[1762869705240,3.33110069,3530.2,3530.1,0.01]
[1762869705591,4.72193095,3530.2,3530.1,0.01]
[1762869705794,1.16023026,3530.2,3530.1,0.01]
[1762869705939,1.88823026,3530.2,3530.1,0.01]
[1762869706144,4.72093095,3530.2,3530.1,0.01]
[1762869706657,4.74912473,3530.2,3530.1,0.01]
[1762869706855,7.21339907,3530.2,3530.1,0.01]
[1762869707056,1.16023026,3530.2,3530.1,0.01]
[1762869707258,1.10063026,3530.2,3530.1,0.01]
[1762869707578,0.60223026,3530.2,3530.1,0.01]
[1762869707791,1.82863026,3530.2,3530.1,0.01]
[1762869707983,2.83044619,3530.2,3530.1,2.84278094]
[1762869708146,2.83044772,3530.2,3530.1,2.84278094]
[1762869708470,2.83044772,3530.2,3530.1,0.01]
[1762869708672,2.83044772,3530.2,3530.1,2.84278094]
[1762869709347,1.82863026,3530.2,3530.1,2.84278094]
[1762869709745,1.82863026,3530.2,3530.1,0.01]
[1762869709983,2.83044772,3530.2,3530.1,0.01]
[1762869710155,1.82863026,3530.2,3530.1,0.01]
[1762869710342,1.33023026,3530.2,3530.1,0.01]
[1762869710542,1.82863026,3530.2,3530.1,0.01]
[1762869710894,1.88823026,3530.2,3530.1,0.01]
[1762869711098,4.72093095,3530.2,3530.1,0.01]
[1762869711298,6.22426705,3530.2,3530.1,0.01]
[1762869711446,1.88823026,3530.2,3530.1,0.01]
[1762869711649,4.72093095,3530.2,3530.1,0.01]
[1762869711865,5.7497846,3530.2,3530.1,0.01]
[1762869712064,1.88823026,3530.2,3530.1,0.01]
[1762869712298,5.74970091,3530.2,3530.1,0.01]
[1762869712611,0.60223026,3530.2,3530.1,3.50278094]
[1762869712899,1.2264,3530.7,3530.1,1.1427]
[1762869713064,0.4984,3530.2,3530.1,0.01]
[1762869713259,1.2264,3530.2,3530.1,0.01]
[1762869713461,0.4984,3530.2,3530.1,0.01]
[1762869713666,1.2264,3530.2,3530.1,0.01]
[1762869713866,1.286,3530.2,3530.1,0.01]
[1762869714097,1.88625281,3530.2,3530.1,0.01]
[1762869714298,4.11870069,3530.2,3530.1,0.01]
[1762869714518,0.558,3530.2,3530.1,0.01]
[1762869714666,1.2264,3530.2,3530.1,0.01]
[1762869714998,4.11870069,3530.2,3530.1,0.01]
[1762869715211,4.1164345,3530.2,3530.1,0.01]
[1762869715525,4.63012828,3530.2,3530.1,0.01]
[1762869715804,5.20210312,3530.2,3530.1,0.01]
[1762869716016,4.47410312,3530.2,3530.1,0.01]
[1762869716300,4.6019345,3530.2,3530.1,0.01]
[1762869716465,4.63012828,3530.2,3530.1,0.01]
[1762869716918,4.1164345,3530.2,3530.1,0.01]
[1762869717713,0.728,3530.2,3530.1,0.01]
[1762869717896,1.22413381,3530.2,3530.1,0.01]
[1762869718207,1.22413381,3530.2,3530.1,0.011]
[1762869718377,6.92163024,3531.2,3530.1,0.011]
[1762869718378,0.002,3530.4,3530.1,0.011]
[1762869718581,0.49613381,3530.2,3530.1,0.011]
[1762869718778,3.35702828,3530.2,3530.1,0.011]
[1762869718977,3.3288345,3530.2,3530.1,0.011]
[1762869719195,0.49613381,3530.2,3530.1,0.011]
[1762869720032,3.35702828,3530.2,3530.1,0.011]
[1762869720344,3.35622828,3530.2,3530.1,0.011]
[1762869720843,0.49533381,3530.2,3530.1,0.011]
[1762869721436,3.8732345,3530.2,3530.1,0.011]
[1762869721841,3.4017345,3530.2,3530.1,0.011]
[1762869722051,0.728,3530.2,3530.1,0.011]
[1762869722344,4.0560345,3530.2,3530.1,0.011]
[1762869722636,1.22333381,3530.2,3530.1,0.011]
[1762869722837,4.0560345,3530.2,3530.1,0.011]
[1762869723037,3.3280345,3530.2,3530.1,0.011]
[1762869723271,4.15792828,3530.2,3530.1,0.011]
[1762869723580,0.49533381,3530.2,3530.1,0.011]
[1762869723748,4.62952828,3530.2,3530.1,0.011]
[1762869724065,4.6013345,3530.2,3530.1,0.011]
[1762869724833,3.3280345,3530.2,3530.1,0.011]
[1762869725031,4.0560345,3530.2,3530.1,0.011]
[1762869725431,4.6013345,3530.2,3530.1,0.011]
[1762869726031,4.1376345,3530.2,3530.1,0.011]
[1762869726233,3.8733345,3530.2,3530.1,0.011]
[1762869726433,4.62952828,3530.2,3530.1,0.011]
[1762869726909,6.86385011,3530.2,3530.1,0.011]
[1762869727066,3.3330217,3529.8,3529.7,0.001]
[1762869727379,13.13382678,3529.8,3529.7,0.001]
[1762869727534,13.60532678,3529.8,3529.7,0.001]
[1762869728369,2.83350334,3529.2,3529.1,0.09711738]
[1762869728569,11.33956762,3529.2,3529.1,0.09711738]
[1762869728869,3.59416579,3529.2,3529.1,0.09711738]
[1762869729175,1.48396245,3529.2,3529.1,0.09711738]
[1762869729336,4.39116579,3529.2,3529.1,0.09711738]
[1762869729669,10.83618037,3529.2,3529.1,0.09711738]
[1762869729877,11.77948659,3529.2,3529.1,0.09711738]
[1762869730038,0.86242924,3529.2,3529.1,0.09711738]
[1762869730231,0.26062864,3529.2,3529.1,0.09711738]
[1762869730468,1.48396245,3529.2,3529.1,0.28811738]
[1762869730672,0.75596245,3529.2,3529.1,0.09711738]
[1762869730871,1.48396245,3529.2,3529.1,4.03320101]
[1762869731074,1.56166245,3529.2,3529.1,0.09711738]
[1762869731276,4.39516579,3529.2,3529.1,0.09711738]
[1762869731794,0.26062864,3529.2,3529.1,0.09711738]
[1762869731996,1.48396245,3529.2,3529.1,4.03320101]
[1762869732886,0.26062864,3529.2,3529.1,4.03320101]
[1762869734492,0.75596245,3529.2,3529.1,4.03320101]
[1762869735212,0.26062864,3529.2,3529.1,4.03320101]
[1762869736010,0.002,3530.4,3529.7,2.83303191]
[1762869736289,0.002,3530.4,3530.3,3.47552045]
[1762869736671,0.002,3530.4,3530.3,3.93512045]
[1762869737560,0.49733381,3530.4,3530.3,0.6429]
[1762869738278,0.49733381,3530.4,3530.3,3.93512045]
[1762869738499,0.49733381,3530.4,3530.3,1.1025]
[1762869738710,0.49733381,3530.4,3530.3,3.93512045]
[1762869740199,0.002,3530.4,3530.3,3.93512045]
[1762869740698,0.002,3530.4,3530.2,2.83265281]
[1762869740862,0.002,3530.4,3530.1,2.8327183]
[1762869740863,0.49533381,3530.2,3530.1,2.8327183]
[1762869741287,0.002,3530.4,3530.0,0.191]
[1762869741596,0.49533381,3530.1,3530.0,3.02386118]
[1762869741924,0.49533381,3530.1,3530.0,0.191]
[1762869742099,0.49533381,3529.9,3529.8,2.83298152]
[1762869742598,2.86097509,3530.1,3529.3,0.4596]
[1762869742758,0.49533381,3529.4,3529.3,3.29302305]
[1762869742962,2.86097509,3530.1,3529.1,0.09811738]
[1762869742963,0.727,3529.7,3529.1,0.09811738]
[1762869743164,0.49533381,3529.2,3529.1,0.09811738]
[1762869743367,1.22233381,3529.2,3529.1,0.09811738]
[1762869743567,4.62933093,3529.2,3529.1,0.09811738]
[1762869743781,5.20320455,3529.2,3529.1,0.09811738]
[1762869744283,5.20240455,3529.2,3529.1,0.09811738]
[1762869744866,4.60033715,3529.2,3529.1,0.09811738]
[1762869745066,1.29923381,3529.2,3529.1,0.09811738]
[1762869745273,4.60033715,3529.2,3529.1,0.09811738]
[1762869745590,6.8638258,3529.2,3529.1,0.09811738]
[1762869745804,1.56528788,3529.2,3529.1,0.09811738]
[1762869746003,1.82308788,3529.2,3529.1,0.09811738]
[1762869746201,1.22153381,3529.2,3529.1,0.09811738]
[1762869746818,0.49453381,3529.2,3529.1,0.09811738]
[1762869747112,4.14803715,3529.2,3529.1,0.09811738]
[1762869747415,0.727,3529.2,3529.1,0.09811738]
[1762869747618,1.22153381,3529.2,3529.1,0.09811738]
[1762869747815,1.48239338,3529.2,3529.1,0.09811738]
[1762869748904,1.57539338,3529.2,3529.1,0.09811738]
[1762869749106,4.86139672,3529.2,3529.1,0.09811738]
[1762869749335,11.3064113,3529.2,3529.1,0.09811738]
[1762869749486,4.73544282,3529.2,3529.1,0.09811738]
[1762869749685,5.46244282,3529.2,3529.1,0.09811738]
[1762869751389,1.44943948,3529.2,3529.1,0.09811738]
[1762869751625,0.26085957,3529.2,3529.1,0.09811738]
[1762869751843,0.26085957,3529.2,3529.1,2.93170101]
[1762869752052,1.48239338,3529.2,3529.1,4.08030101]
[1762869752191,0.49453381,3529.2,3529.1,4.08030101]
[1762869752385,1.22153381,3529.3,3529.2,2.83350334]
[1762869752708,0.727,3529.5,3529.2,0.9568]
[1762869752907,2.83457107,3530.4,3529.7,2.83302874]
[1762869753091,1.01594844,3530.3,3529.3,0.4715]
[1762869753290,0.49453381,3529.3,3529.1,0.28991738]
[1762869753628,0.49453381,3529.3,3529.2,2.83345248]
[1762869753821,0.49453381,3529.2,3529.1,0.09811738]
[1762869754024,0.96373381,3529.2,3529.1,0.09811738]
[1762869754223,4.05795433,3529.2,3529.1,0.09811738]
[1762869754429,4.05795433,3529.2,3528.1,0.2318]
[1762869754430,3.30302452,3528.8,3528.1,0.0392]
[1762869754602,4.46298277,3527.7,3526.1,0.6733]
[1762869754804,3.60004987,3527.7,3526.1,0.6733]
[1762869755139,10.77206445,3527.7,3526.4,0.4715]
[1762869755432,10.77206445,3527.7,3526.1,0.2018]
[1762869755433,3.32964381,3527.2,3526.1,0.2018]
[1762869755590,3.59035171,3527.2,3526.1,0.2018]
[1762869755785,1.48224171,3527.2,3526.1,3.03776284]
[1762869756132,0.75524171,3527.2,3526.8,2.835418]
[1762869756344,1.22153381,3527.2,3526.8,2.83540964]
[1762869756488,1.22153381,3527.2,3527.1,0.2018]
[1762869756689,1.22153381,3527.2,3527.1,0.01]
[1762869756914,1.22153381,3527.2,3527.1,0.2018]
[1762869757310,1.22153381,3527.2,3527.1,0.01]
[1762869757311,1.9507479,3527.2,3527.1,0.01]
[1762869757511,1.22153381,3527.2,3527.1,0.01]
[1762869757712,1.22153381,3527.2,3527.1,0.2018]
[1762869757937,0.1662,3527.8,3527.1,0.6871]
[1762869758275,6.4168208,3528.6,3527.1,3.52229038]
[1762869758276,0.49453381,3527.2,3527.1,3.52229038]
[1762869758416,0.727,3527.8,3527.1,1.1586]
[1762869758751,2.83396984,3528.7,3527.2,0.4715]
[1762869758752,0.02819378,3527.7,3527.2,0.4715]
[1762869758913,0.49453381,3527.4,3527.3,2.83502962]
[1762869759343,0.49453381,3527.4,3527.3,3.79182962]
[1762869759540,0.49453381,3527.4,3527.3,0.9568]
[1762869759728,0.49453381,3527.4,3527.3,3.79182962]
[1762869760253,0.49453381,3527.4,3527.3,0.9568]
[1762869760619,0.49453381,3527.4,3527.3,0.4853]
[1762869760914,0.02819378,3528.1,3527.3,0.4853]
[1762869760915,6.5800208,3528.3,3527.3,0.4715]
[1762869761242,0.49453381,3527.4,3527.3,18.29182962]
[1762869761416,1.22153381,3527.4,3527.3,18.29182962]
[1762869762024,0.727,3527.5,3527.4,2.83490992]
[1762869762251,1.22153381,3527.5,3527.4,2.83490992]
[1762869762440,1.22153381,3527.5,3527.4,3.79170992]
[1762869762647,0.49453381,3527.5,3527.4,3.79170992]
[1762869762948,0.4598,3529.2,3527.4,0.9568]
[1762869763152,0.727,3528.9,3528.3,2.83415313]
[1762869763453,0.49453381,3528.4,3528.3,2.83415313]
[1762869763760,0.727,3528.9,3527.5,0.6633]
[1762869763761,0.8932,3528.9,3528.0,0.4715]
[1762869764144,0.49453381,3528.3,3528.2,2.83429174]
[1762869764340,0.49453381,3528.3,3528.2,17.33429174]
[1762869764642,0.49453381,3528.3,3528.2,18.29109174]
[1762869764838,0.8932,3528.9,3528.2,15.4568]
[1762869765059,0.49453381,3528.3,3528.2,14.5]
[1762869765469,0.49453381,3528.3,3528.2,17.33430644]
[1762869765636,0.49453381,3528.3,3528.2,14.5]
[1762869765820,0.727,3528.4,3528.2,14.5]
[1762869766023,0.727,3528.4,3527.5,0.1918]
[1762869766024,0.49453381,3527.6,3527.5,0.1918]
[1762869766329,0.49453381,3527.6,3527.5,3.02666888]
[1762869766531,0.49453381,3527.6,3527.5,14.6918]
[1762869766725,0.49453381,3527.6,3527.5,14.5]
[1762869767119,0.49453381,3527.6,3527.5,17.82016888]
[1762869767316,0.49453381,3527.7,3527.6,2.83478852]
[1762869767520,0.49453381,3527.9,3527.6,0.4715]
[1762869767823,0.727,3528.3,3527.7,0.4715]
[1762869768018,0.49453381,3528.1,3528.0,2.83446712]
[1762869768357,0.1662,3528.9,3528.5,2.83398618]
[1762869768558,0.49373381,3528.6,3528.5,2.83398618]
[1762869768731,0.49373381,3528.7,3528.5,0.4715]
[1762869769058,0.5344,3529.7,3528.7,2.83390483]
[1762869769059,0.49373381,3528.9,3528.7,2.83390483]
[1762869769262,0.49373381,3528.9,3528.8,2.83382452]
[1762869769439,0.49373381,3529.1,3529.0,2.83365617]
[1762869769638,0.49373381,3529.1,3528.8,14.5]
[1762869769834,0.727,3529.3,3528.9,0.4715]
[1762869770042,0.49373381,3529.0,3528.9,2.83374422]
[1762869770351,0.49373381,3529.0,3528.9,3.30524422]
[1762869770660,0.49373381,3529.0,3528.9,3.31904422]
[1762869771019,0.49373381,3529.0,3528.9,0.4853]
[1762869771227,0.49373381,3528.9,3528.8,17.33380728]
[1762869771795,0.49373381,3528.9,3528.8,18.29060728]
[1762869771989,0.49373381,3528.9,3528.0,0.4715]
[1762869772259,0.49373381,3528.2,3528.1,2.83438678]
[1762869772555,3.29302767,3529.6,3528.1,2.83438678]
[1762869772556,1.21483696,3528.7,3528.6,2.83398514]
[1762869772749,0.49373381,3528.7,3528.6,3.31928514]
[1762869773120,0.49373381,3528.7,3528.2,0.4715]
[1762869773328,0.49373381,3528.3,3528.2,3.30572881]
[1762869774063,0.49373381,3528.3,3528.2,3.79102881]
[1762869774368,0.727,3528.3,3527.6,0.4715]
[1762869774538,0.49373381,3528.1,3527.9,2.83454746]
[1762869774739,0.49373381,3528.1,3528.0,14.5]
[1762869774935,0.49373381,3528.1,3528.0,17.33446712]
[1762869775260,0.727,3528.3,3527.3,0.4715]
[1762869775447,0.49373381,3527.4,3527.3,3.30652482]
[1762869775842,0.727,3528.3,3527.3,15.464]
[1762869776043,0.49373381,3527.7,3527.6,2.83477388]
[1762869776253,0.49373381,3527.7,3527.3,15.464]
[1762869776254,2.83430644,3528.2,3527.3,15.464]
[1762869776435,2.83430644,3528.2,3527.5,2.8347899]
[1762869776436,0.49373381,3527.6,3527.5,2.8347899]
[1762869776634,0.727,3527.6,3527.1,0.011]
[1762869776839,0.49373381,3527.2,3527.1,0.011]
[1762869777069,3.42374381,3527.2,3527.1,0.011]
[1762869777274,1.57646291,3527.2,3527.1,0.011]
[1762869777446,4.41157291,3527.2,3527.1,0.011]
[1762869777653,4.3684391,3527.2,3527.1,0.011]
[1762869777847,4.89036669,3527.2,3527.1,0.011]
[1762869778172,6.52410749,3527.2,3527.1,0.011]
[1762869778348,6.59614277,3527.2,3527.1,0.011]
[1762869778550,7.09614277,3527.2,3527.1,0.011]
[1762869779439,10.47564677,3527.2,3527.1,1e-08]
[1762869779635,9.74864677,3527.2,3527.1,1e-08]
[1762869779866,7.50164677,3527.2,3527.1,1e-08]
[1762869780249,6.77464677,3527.2,3527.1,1e-08]
[1762869780448,7.50164677,3527.2,3527.1,1e-08]
[1762869780645,6.27464677,3527.2,3527.1,1e-08]
[1762869780885,1.5033361,3527.8,3527.1,1e-08]
[1762869780886,1.5033361,3528.5,3527.1,0.18340001]
[1762869781050,1.5053361,3529.3,3527.9,1.5392448]
[1762869781245,2.83364345,3529.1,3528.0,1.37436614]
[1762869781567,0.02819378,3529.0,3528.3,14.5]
[1762869781762,0.5,3528.4,3528.3,14.5]
[1762869781965,0.5,3528.4,3527.2,1.1337408]
[1762869781966,7.554463,3528.4,3527.2,2.83511]
[1762869782163,0.5,3527.2,3527.1,3.01859039]
[1762869782569,0.733,3527.8,3527.6,2.83474591]
[1762869782763,0.002,3529.3,3527.1,15.14580001]
[1762869782764,0.5,3528.2,3527.5,0.405504]
[1762869782985,0.002,3529.3,3527.5,0.405504]
[1762869782986,0.5,3528.4,3528.3,2.83422611]
[1762869783152,0.732,3529.2,3528.8,2.83382452]
[1762869783373,0.51,3528.9,3528.8,17.33382452]
[1762869783676,0.01,3528.9,3528.8,14.5]
[1762869783998,0.01,3528.9,3527.9,1.1954]
[1762869783999,0.5,3528.5,3528.4,2.83410888]
[1762869784175,0.5,3528.1,3527.5,0.733]
[1762869784361,0.5,3528.1,3527.9,2.83452829]
[1762869784574,0.5,3527.7,3527.6,14.5]
[1762869784871,0.5,3527.4,3527.3,2.83502054]
[1762869785298,3.56747014,3528.0,3527.4,2.83493034]
[1762869785299,0.733,3528.0,3527.4,2.83493034]
[1762869785501,0.5,3527.5,3527.4,2.83493034]
[1762869785819,1.1337408,3528.8,3527.1,14.50000001]
[1762869785820,1.1337408,3528.8,3528.2,2.83430269]
[1762869785821,0.733,3528.8,3528.2,2.83430269]
[1762869785979,0.02819378,3528.6,3527.7,2.83466091]
[1762869786340,0.4991,3528.7,3527.7,2.83466091]
[1762869786341,0.5,3527.8,3527.7,2.83466091]
[1762869786521,0.5,3527.8,3527.1,1e-08]
[1762869786820,0.5,3527.2,3527.1,17.33519039]
[1762869786960,0.5,3527.3,3527.2,2.83511]
[1762869787173,0.5,3527.3,3527.1,14.50000001]
[1762869787369,0.5,3527.2,3527.1,17.33511243]
[1762869787608,0.5,3527.2,3527.1,1e-08]
[1762869787811,0.5,3527.2,3527.1,2.83519039]
[1762869788024,0.733,3527.6,3527.1,2.83519039]
[1762869788315,0.5,3527.3,3527.1,1e-08]
[1762869788499,0.5,3527.2,3527.1,1e-08]
[1762869788992,3.36330378,3527.2,3527.1,1e-08]
[1762869789307,3.86240378,3527.2,3527.1,1e-08]
[1762869789808,5.4679508,3527.2,3527.1,1e-08]
[1762869790214,5.49614458,3527.2,3527.1,1e-08]
[1762869790512,5.4679508,3527.2,3527.1,1e-08]
[1762869790979,4.9679508,3527.2,3527.1,1e-08]
[1762869791186,1.6337408,3527.2,3527.1,1e-08]
[1762869791522,5.6999508,3527.2,3527.1,1e-08]
[1762869792103,2.3657408,3527.2,3527.1,1e-08]
[1762869792303,5.72734458,3527.2,3527.1,1e-08]
[1762869792606,5.6991508,3527.2,3527.1,1e-08]
[1762869792808,6.1991508,3527.2,3527.1,1e-08]
[1762869793104,5.6991508,3527.2,3527.1,1e-08]
[1762869793410,5.95894478,3527.2,3527.1,1e-08]
[1762869793708,5.95896461,3527.2,3527.1,1e-08]
[1762869793878,2.3649408,3527.2,3527.1,1e-08]
[1762869794304,5.2000508,3527.2,3527.1,1e-08]
[1762869794512,2.3649408,3527.2,3527.1,1e-08]
[1762869794733,0.1896,3527.9,3527.2,2.83509069]
[1762869794928,0.5,3527.2,3527.1,0.46240001]
[1762869795128,0.5,3527.2,3527.1,3.29756675]
[1762869795421,0.5,3527.2,3527.1,17.79759039]
[1762869795663,0.1896,3528.2,3527.5,2.83479067]
[1762869795837,0.732,3528.1,3527.1,14.96240001]
[1762869796018,0.5,3527.4,3527.3,2.83502962]
[1762869796800,0.5,3527.4,3527.3,3.29742962]
[1762869797020,1.231,3527.7,3527.6,2.83478852]
[1762869797208,1.231,3527.7,3527.3,0.4624]
[1762869797209,0.731,3527.7,3527.5,2.83486157]
[1762869797532,0.5,3527.5,3527.1,14.50000001]
[1762869797723,0.5,3527.2,3527.1,14.50000001]
[1762869798393,1.23,3527.2,3527.1,1e-08]
[1762869798592,1.25819378,3527.2,3527.1,1e-08]
[1762869798798,0.5,3527.2,3527.1,1e-08]
[1762869798994,0.5,3527.2,3527.1,2.83519039]
[1762869799213,1.23,3527.2,3527.1,1e-08]
[1762869800134,5.6979508,3527.2,3527.1,1e-08]
[1762869800436,2.8628408,3527.2,3527.1,1e-08]
[1762869800737,5.6979508,3527.2,3527.1,1e-08]
[1762869801536,1.23,3527.2,3527.1,1e-08]
[1762869802043,4.06511,3527.2,3527.1,1e-08]
[1762869802287,0.002,3528.2,3527.1,2.83516758]
[1762869802437,0.5,3527.2,3527.1,0.46240001]
[1762869802776,1.229,3527.5,3527.4,2.83494925]
[1762869803073,1.229,3527.5,3527.4,17.33494925]
[1762869803680,1.5053361,3530.2,3529.2,0.1348]
[1762869803881,1.5053361,3530.2,3529.2,0.8828]
[1762869803882,0.26039602,3529.8,3529.2,0.8828]
[1762869804043,0.002,3530.2,3529.8,2.8330217]
[1762869804449,0.002,3530.2,3529.8,3.2954217]
[1762869804780,0.51,3529.9,3529.8,17.3330217]
[1762869804957,0.51,3529.9,3529.8,14.5]
[1762869806241,0.5,3529.1,3528.9,3.02473197]
[1762869806440,0.5,3529.1,3529.0,2.83366392]
[1762869806643,0.5,3529.1,3529.0,17.33366392]
[1762869807256,0.5,3529.1,3529.0,17.78456392]
[1762869807580,0.747,3529.4,3529.3,2.83342305]
[1762869807784,0.51,3529.9,3529.3,0.4509]
[1762869808076,0.5,3529.7,3529.6,2.83311112]
[1762869808546,0.5,3529.7,3529.5,2.83325121]
[1762869808747,0.5,3529.7,3529.6,2.83318223]
[1762869810162,0.5,3529.7,3529.3,0.4509]
[1762869810359,0.755,3529.9,3529.0,14.5]
[1762869810695,0.5,3528.7,3528.6,2.83396523]
[1762869810869,0.5,3528.7,3528.5,2.83406076]
[1762869810870,0.5,3528.6,3528.5,2.83406076]
[1762869811069,0.5,3528.6,3528.5,17.33406076]
[1762869811603,1.245,3528.7,3528.5,17.33405764]
[1762869811894,0.5,3528.6,3528.5,17.33405764]
[1762869812094,3.29233465,3529.6,3528.9,2.83370006]
[1762869812296,0.5,3528.9,3528.8,2.83382328]
[1762869812499,0.5,3528.9,3528.5,14.5]
[1762869812500,1.244,3528.9,3528.7,2.83387691]
[1762869812795,0.5,3528.8,3528.7,2.83387691]
[1762869813757,1.243,3528.8,3528.7,2.83387691]
[1762869813957,2.83310218,3529.7,3528.7,0.4509]
[1762869814203,0.5,3528.9,3528.8,2.83382452]
[1762869814512,0.5,3528.9,3528.7,0.4509]
[1762869814513,0.743,3529.2,3529.1,2.83358363]
[1762869814668,1.243,3529.3,3529.2,2.83350334]
[1762869815389,1.243,3529.3,3529.1,2.83353166]
[1762869815563,1.243,3529.3,3528.9,3.02473923]
[1762869815766,0.002,3529.2,3529.1,2.83358363]
[1762869816196,0.0012,3529.2,3529.1,3.28448363]
[1762869816492,0.0012,3529.2,3529.1,2.83358363]
[1762869817800,0.0012,3529.2,3528.5,17.78491902]
[1762869817801,0.0012,3529.2,3528.8,2.83376814]
[1762869818097,0.5,3528.9,3528.8,2.83376814]
[1762869818491,0.5,3528.9,3528.5,14.5]
[1762869818690,0.0012,3529.2,3528.5,17.33406546]
[1762869818691,0.5,3528.6,3528.5,17.33406546]
[1762869818991,0.5,3528.6,3528.5,14.5]
[1762869819189,0.5,3528.6,3528.5,17.33406546]
[1762869819998,0.5,3528.6,3528.5,14.5]
[1762869820510,0.5,3528.6,3527.5,0.191]
[1762869820511,0.5,3528.0,3527.5,0.191]
[1762869820666,1.238,3527.9,3527.8,2.83462556]
[1762869821086,1.238,3527.9,3527.8,17.33462556]
[1762869821486,1.238,3527.9,3527.8,14.5]
[1762869821689,1.238,3527.9,3527.5,0.191]
[1762869821690,0.9208,3527.9,3527.1,0.01000001]
[1762869821892,0.5,3527.3,3527.1,0.01000001]
[1762869822074,1.238,3527.2,3527.1,0.01000001]
[1762869822578,1.6971,3527.2,3527.1,0.01000001]
[1762869823191,1.238,3527.2,3527.1,0.01000001]
[1762869823372,0.5,3527.2,3527.1,3.03619039]
[1762869823691,0.1828,3528.9,3527.3,2.83502962]
[1762869823692,0.737,3527.4,3527.3,2.83502962]
[1762869824009,0.5,3527.6,3527.5,2.83486462]
[1762869824300,0.5,3527.6,3527.1,0.20100001]
[1762869824506,1.237,3527.6,3527.5,2.83486888]
[1762869824701,1.237,3527.6,3527.5,3.30606888]
[1762869824702,0.5,3527.6,3527.5,3.30606888]
[1762869824903,0.5,3528.0,3527.9,2.83454746]
[1762869825209,0.737,3528.1,3527.1,3.03617352]
[1762869825410,0.1828,3528.9,3527.2,0.4509]
[1762869825583,0.4591,3528.8,3527.2,17.78599932]
[1762869825785,0.4591,3528.8,3527.9,2.83447858]
[1762869825786,0.5,3528.1,3527.9,2.83447858]
[1762869825981,0.737,3528.7,3527.1,0.20100001]
[1762869825982,0.737,3528.0,3527.6,2.83473152]
[1762869826189,0.5,3527.4,3527.1,0.20100001]
[1762869826590,0.5,3527.4,3527.3,2.83502962]
[1762869826979,0.5,3528.1,3528.0,2.83446176]
[1762869827300,0.5,3528.0,3527.4,0.4509]
[1762869827478,0.737,3528.1,3527.4,0.4509]
[1762869827479,0.5,3527.9,3527.8,2.83457643]
[1762869827786,0.5,3528.1,3528.0,2.83446712]
[1762869827972,0.4603,3529.2,3528.0,0.4712]
[1762869828174,0.4603,3529.2,3528.1,0.191]
[1762869828376,0.5,3528.5,3528.4,2.83414578]
[1762869829031,0.737,3528.6,3528.1,0.191]
[1762869829232,0.5,3528.7,3528.6,2.83398514]
[1762869829523,0.5,3528.4,3528.3,2.83422611]
[1762869830127,0.736,3528.7,3528.6,2.83398514]
[1762869830128,0.5,3528.7,3528.6,2.83398514]
[1762869830971,0.5,3528.6,3528.5,2.83406546]
[1762869831178,0.5,3528.3,3527.8,3.28549645]